[Event "Titled Tuesday Blitz February 21 Late 2023"]
[White "Adel, Sara"]
[Black "Sarkar, Justin"]
[WhiteFideId "10616764"]
[BlackFideId "2010011"]
[WhiteElo "1739"]
[BlackElo "2309"]
[Result "0-1"]
[Round "08"]
[TimeControl "180+2"]
[Date "2023.02.21"]
[WhiteClock "0:00:27"]
[BlackClock "0:00:25"]

1. e4 {[%clk 0:02:59]}  c5 {[%clk 0:02:21]} 2. Nf3 {[%clk 0:02:57]}  Nc6 {[%clk 0:02:21]} 3. d4 {[%clk 0:02:57]}  cxd4 {[%clk 0:02:21]} 4. Nxd4 {[%clk 0:02:57]}  g6 {[%clk 0:02:21]} 5. c3 {[%clk 0:02:54]}  Bg7 {[%clk 0:02:17]} 6. Bb5 {[%clk 0:02:54]}  Nf6 {[%clk 0:02:14]} 7. f3 {[%clk 0:02:51]}  O-O {[%clk 0:02:08]} 8. Bxc6 {[%clk 0:02:47]}  dxc6 {[%clk 0:02:00]} 9. O-O {[%clk 0:02:46]}  e5 {[%clk 0:01:47]} 10. Nc2 {[%clk 0:02:40]}  Qxd1 {[%clk 0:01:44]} 11. Rxd1 {[%clk 0:02:41]}  Be6 {[%clk 0:01:43]} 12. Be3 {[%clk 0:02:38]}  Rfd8 {[%clk 0:01:39]} 13. Nba3 {[%clk 0:02:36]}  b6 {[%clk 0:01:32]} 14. Bf2 {[%clk 0:02:29]}  Rxd1+ {[%clk 0:01:27]} 15. Rxd1 {[%clk 0:02:26]}  Bxa2 {[%clk 0:01:27]} 16. Nb4 {[%clk 0:02:24]}  Bb3 {[%clk 0:01:24]} 17. Rd6 {[%clk 0:02:03]}  c5 {[%clk 0:01:23]} 18. Nc6 {[%clk 0:02:02]}  Ne8 {[%clk 0:01:16]} 19. Rd7 {[%clk 0:01:53]}  Ba4 {[%clk 0:01:08]} 20. Rxa7 {[%clk 0:01:53]}  Bxc6 {[%clk 0:01:07]} 21. Rxa8 {[%clk 0:01:48]}  Bxa8 {[%clk 0:01:07]} 22. Nc4 {[%clk 0:01:48]}  b5 {[%clk 0:00:58]} 23. Nb6 {[%clk 0:01:47]}  Bc6 {[%clk 0:00:57]} 24. Bxc5 {[%clk 0:01:47]}  f5 {[%clk 0:00:56]} 25. exf5 {[%clk 0:01:38]}  gxf5 {[%clk 0:00:56]} 26. Nc8 {[%clk 0:01:37]}  Kf7 {[%clk 0:00:52]} 27. Kf2 {[%clk 0:01:34]}  Ke6 {[%clk 0:00:51]} 28. b4 {[%clk 0:01:28]}  e4 {[%clk 0:00:47]} 29. Na7 {[%clk 0:01:18]}  Bd7 {[%clk 0:00:43]} 30. fxe4 {[%clk 0:01:16]}  fxe4 {[%clk 0:00:42]} 31. Ke3 {[%clk 0:01:16]}  Kd5 {[%clk 0:00:41]} 32. g3 {[%clk 0:00:51]}  Bxc3 {[%clk 0:00:38]} 33. Kf4 {[%clk 0:00:42]}  Nd6 {[%clk 0:00:36]} 34. g4 {[%clk 0:00:37]}  Nc8 {[%clk 0:00:32]} 35. Nxc8 {[%clk 0:00:35]}  Bxc8 {[%clk 0:00:32]} 36. h3 {[%clk 0:00:34]}  Bd4 {[%clk 0:00:28]} 37. Bf8 {[%clk 0:00:30]}  e3 {[%clk 0:00:27]} 38. Kf3 {[%clk 0:00:30]}  Kc4 {[%clk 0:00:26]} 39. h4 {[%clk 0:00:27]}  Kd3 {[%clk 0:00:25]} 0-1


[Site "https://www.chess.com"]

[Event "Titled Tuesday Blitz February 21 Late 2023"]
[White "Avgoustopoulos, Christian"]
[Black "Delgado Rosas, Fatima Alexandra"]
[WhiteFideId "2122294"]
[BlackFideId "6603963"]
[WhiteElo "1969"]
[BlackElo "1500"]
[Result "1-0"]
[Round "08"]
[TimeControl "180+2"]
[Date "2023.02.21"]
[WhiteClock "0:00:40"]
[BlackClock "0:01:41"]

1. e4 {[%clk 0:03:00]}  Nc6 {[%clk 0:02:57]} 2. Nf3 {[%clk 0:02:59]}  d5 {[%clk 0:02:57]} 3. exd5 {[%clk 0:02:57]}  Qxd5 {[%clk 0:02:57]} 4. d4 {[%clk 0:02:56]}  Bg4 {[%clk 0:02:56]} 5. Be2 {[%clk 0:02:56]}  Nf6 {[%clk 0:02:55]} 6. c4 {[%clk 0:02:56]}  Qh5 {[%clk 0:02:55]} 7. Be3 {[%clk 0:02:54]}  O-O-O {[%clk 0:02:55]} 8. d5 {[%clk 0:02:53]}  e6 {[%clk 0:02:56]} 9. Nc3 {[%clk 0:02:47]}  exd5 {[%clk 0:02:56]} 10. cxd5 {[%clk 0:02:48]}  Bb4 {[%clk 0:02:56]} 11. O-O {[%clk 0:02:38]}  Bxc3 {[%clk 0:02:55]} 12. bxc3 {[%clk 0:02:38]}  Nxd5 {[%clk 0:02:56]} 13. Qa4 {[%clk 0:02:26]}  Nxe3 {[%clk 0:02:52]} 14. fxe3 {[%clk 0:02:27]}  Bxf3 {[%clk 0:02:44]} 15. Bxf3 {[%clk 0:02:24]}  Qc5 {[%clk 0:02:45]} 16. Bxc6 {[%clk 0:02:07]}  bxc6 {[%clk 0:02:44]} 17. Rab1 {[%clk 0:01:58]}  Qxe3+ {[%clk 0:02:43]} 18. Kh1 {[%clk 0:01:58]}  Rd6 {[%clk 0:02:25]} 19. Rxf7 {[%clk 0:01:51]}  Qe6 {[%clk 0:02:12]} 20. Rbf1 {[%clk 0:01:35]}  Re8 {[%clk 0:02:05]} 21. Qxa7 {[%clk 0:01:25]}  Re7 {[%clk 0:02:03]} 22. Rf8+ {[%clk 0:01:12]}  Kd7 {[%clk 0:02:01]} 23. Qa8 {[%clk 0:00:57]}  Re8 {[%clk 0:01:43]} 24. R1f7+ {[%clk 0:00:50]}  Qxf7 {[%clk 0:01:41]} 25. Rxf7+ {[%clk 0:00:51]}  Re7 {[%clk 0:01:40]} 26. Rxe7+ {[%clk 0:00:45]}  Kxe7 {[%clk 0:01:41]} 27. h3 {[%clk 0:00:40]}  Rd1+ {[%clk 0:01:41]} 28. Kh2 {[%clk 0:00:40]} 1-0


[Site "https://www.chess.com"]

[Event "Titled Tuesday Blitz February 21 Late 2023"]
[White "Romero Ruscalleda, Josep"]
[Black "Torres Dominguez, David"]
[WhiteFideId "2231859"]
[BlackFideId "2220857"]
[WhiteElo "2160"]
[BlackElo "1994"]
[Result "0-1"]
[Round "08"]
[TimeControl "180+2"]
[Date "2023.02.21"]
[WhiteClock "0:00:02"]
[BlackClock "0:00:02"]

1. e4 {[%clk 0:03:00]}  Nc6 {[%clk 0:02:59]} 2. d4 {[%clk 0:03:00]}  e5 {[%clk 0:03:00]} 3. Nf3 {[%clk 0:03:01]}  exd4 {[%clk 0:02:59]} 4. Bc4 {[%clk 0:03:00]}  Bc5 {[%clk 0:02:59]} 5. O-O {[%clk 0:02:59]}  Nf6 {[%clk 0:02:59]} 6. e5 {[%clk 0:02:59]}  d5 {[%clk 0:02:59]} 7. Bb5 {[%clk 0:02:59]}  Ne4 {[%clk 0:02:59]} 8. Nxd4 {[%clk 0:03:00]}  Bd7 {[%clk 0:02:56]} 9. Bxc6 {[%clk 0:03:00]}  bxc6 {[%clk 0:02:56]} 10. Be3 {[%clk 0:03:00]}  O-O {[%clk 0:02:52]} 11. Nd2 {[%clk 0:03:00]}  Bb6 {[%clk 0:02:40]} 12. Nxe4 {[%clk 0:02:38]}  dxe4 {[%clk 0:02:38]} 13. Qh5 {[%clk 0:02:34]}  Qe7 {[%clk 0:02:23]} 14. c3 {[%clk 0:02:20]}  g6 {[%clk 0:02:21]} 15. Qg5 {[%clk 0:02:14]}  Rfe8 {[%clk 0:02:12]} 16. Qxe7 {[%clk 0:02:06]}  Rxe7 {[%clk 0:02:10]} 17. Bf4 {[%clk 0:02:06]}  Bxd4 {[%clk 0:02:04]} 18. cxd4 {[%clk 0:02:06]}  Be6 {[%clk 0:02:05]} 19. b3 {[%clk 0:02:03]}  Rd7 {[%clk 0:02:01]} 20. Be3 {[%clk 0:02:00]}  Rd5 {[%clk 0:01:57]} 21. Rac1 {[%clk 0:01:59]}  Ra5 {[%clk 0:01:50]} 22. Rxc6 {[%clk 0:01:46]}  Rxa2 {[%clk 0:01:48]} 23. Rxc7 {[%clk 0:01:45]}  Bxb3 {[%clk 0:01:48]} 24. Rfc1 {[%clk 0:01:44]}  Kg7 {[%clk 0:01:04]} 25. Bg5 {[%clk 0:01:41]}  h6 {[%clk 0:01:04]} 26. Bf6+ {[%clk 0:01:41]}  Kh7 {[%clk 0:01:04]} 27. h4 {[%clk 0:01:35]}  Be6 {[%clk 0:00:57]} 28. R1c6 {[%clk 0:01:29]}  Re8 {[%clk 0:00:50]} 29. Rd6 {[%clk 0:01:20]}  Rd2 {[%clk 0:00:39]} 30. Rxa7 {[%clk 0:01:19]}  Rd1+ {[%clk 0:00:36]} 31. Kh2 {[%clk 0:01:19]}  g5 {[%clk 0:00:31]} 32. hxg5 {[%clk 0:01:12]}  hxg5 {[%clk 0:00:32]} 33. Ra5 {[%clk 0:01:04]}  Kg6 {[%clk 0:00:29]} 34. d5 {[%clk 0:01:03]}  Bf5 {[%clk 0:00:28]} 35. Rb6 {[%clk 0:00:42]}  Rd2 {[%clk 0:00:24]} 36. Kg3 {[%clk 0:00:35]}  Rd3+ {[%clk 0:00:23]} 37. f3 {[%clk 0:00:24]}  exf3 {[%clk 0:00:22]} 38. gxf3 {[%clk 0:00:24]}  g4 {[%clk 0:00:22]} 39. Bh4+ {[%clk 0:00:20]}  Kh5 {[%clk 0:00:18]} 40. Kg2 {[%clk 0:00:16]}  Kxh4 {[%clk 0:00:12]} 41. fxg4 {[%clk 0:00:16]}  Kxg4 {[%clk 0:00:11]} 42. d6 {[%clk 0:00:14]}  Rd2+ {[%clk 0:00:07]} 43. Kf1 {[%clk 0:00:14]}  Rc8 {[%clk 0:00:06]} 44. Ra4+ {[%clk 0:00:13]}  Kg5 {[%clk 0:00:06]} 45. Ra1 {[%clk 0:00:10]}  Bd3+ {[%clk 0:00:05]} 46. Ke1 {[%clk 0:00:10]}  Re2+ {[%clk 0:00:05]} 47. Kd1 {[%clk 0:00:10]}  Rh8 {[%clk 0:00:03]} 48. Ra5 {[%clk 0:00:02]}  Rh1# {[%clk 0:00:02]} 0-1


[Site "https://www.chess.com"]

[Event "Titled Tuesday Blitz February 21 Late 2023"]
[White "Calcada, Lucas Galvan"]
[Black "Gamboa, Juan Pablo"]
[WhiteFideId "22746099"]
[BlackFideId "105180"]
[WhiteElo "1739"]
[BlackElo "2224"]
[Result "1-0"]
[Round "08"]
[TimeControl "180+2"]
[Date "2023.02.21"]
[WhiteClock "0:02:05"]
[BlackClock "0:01:40"]

1. e4 {[%clk 0:03:00]}  e6 {[%clk 0:03:00]} 2. d4 {[%clk 0:03:00]}  d5 {[%clk 0:03:00]} 3. Nd2 {[%clk 0:02:58]}  c5 {[%clk 0:02:59]} 4. exd5 {[%clk 0:02:58]}  Qxd5 {[%clk 0:03:00]} 5. Ngf3 {[%clk 0:02:55]}  cxd4 {[%clk 0:03:01]} 6. Bc4 {[%clk 0:02:55]}  Qd6 {[%clk 0:03:01]} 7. Nb3 {[%clk 0:02:54]}  Qb4+ {[%clk 0:03:00]} 8. Nbd2 {[%clk 0:02:51]}  Nc6 {[%clk 0:03:00]} 9. O-O {[%clk 0:02:50]}  Nf6 {[%clk 0:02:58]} 10. a3 {[%clk 0:02:50]}  Qd6 {[%clk 0:02:57]} 11. Nb3 {[%clk 0:02:48]}  e5 {[%clk 0:02:50]} 12. Bb5 {[%clk 0:02:48]}  Bg4 {[%clk 0:02:45]} 13. Re1 {[%clk 0:02:45]}  Be7 {[%clk 0:02:42]} 14. Nbd2 {[%clk 0:02:30]}  O-O {[%clk 0:02:33]} 15. Nc4 {[%clk 0:02:29]}  Qc5 {[%clk 0:02:13]} 16. Bxc6 {[%clk 0:02:29]}  bxc6 {[%clk 0:02:12]} 17. Ncxe5 {[%clk 0:02:29]}  Bxf3 {[%clk 0:02:10]} 18. Nxf3 {[%clk 0:02:28]}  Bd6 {[%clk 0:02:06]} 19. Qxd4 {[%clk 0:02:27]}  Qxd4 {[%clk 0:02:02]} 20. Nxd4 {[%clk 0:02:28]}  c5 {[%clk 0:02:03]} 21. Nf5 {[%clk 0:02:27]}  Rad8 {[%clk 0:02:00]} 22. Bg5 {[%clk 0:02:25]}  h6 {[%clk 0:01:54]} 23. Bxf6 {[%clk 0:02:23]}  gxf6 {[%clk 0:01:55]} 24. Nxh6+ {[%clk 0:02:23]}  Kg7 {[%clk 0:01:55]} 25. Nf5+ {[%clk 0:02:23]}  Kg6 {[%clk 0:01:56]} 26. Ne3 {[%clk 0:02:14]}  Rh8 {[%clk 0:01:54]} 27. g3 {[%clk 0:02:13]}  f5 {[%clk 0:01:53]} 28. Rad1 {[%clk 0:02:09]}  f4 {[%clk 0:01:53]} 29. Nc4 {[%clk 0:02:10]}  Bc7 {[%clk 0:01:50]} 30. b3 {[%clk 0:02:10]}  fxg3 {[%clk 0:01:50]} 31. hxg3 {[%clk 0:02:08]}  Rd4 {[%clk 0:01:40]} 32. Rxd4 {[%clk 0:02:07]}  cxd4 {[%clk 0:01:40]} 33. Re4 {[%clk 0:02:05]} 1-0


[Site "https://www.chess.com"]

[Event "Titled Tuesday Blitz February 21 Late 2023"]
[White "Gamage, Wanshini Vidusama"]
[Black "Magallanes, Rey Jomar"]
[WhiteFideId "9953752"]
[BlackFideId "5205948"]
[WhiteElo "1089"]
[BlackElo "2052"]
[Result "0-1"]
[Round "08"]
[TimeControl "180+2"]
[Date "2023.02.21"]
[WhiteClock "0:00:05"]
[BlackClock "0:01:37"]

1. e4 {[%clk 0:03:00]}  c5 {[%clk 0:02:59]} 2. Nf3 {[%clk 0:03:00]}  d6 {[%clk 0:02:58]} 3. d4 {[%clk 0:03:00]}  cxd4 {[%clk 0:02:59]} 4. Nxd4 {[%clk 0:03:01]}  Nf6 {[%clk 0:03:00]} 5. Nc3 {[%clk 0:03:00]}  a6 {[%clk 0:03:00]} 6. Rg1 {[%clk 0:02:58]}  e5 {[%clk 0:03:00]} 7. Nb3 {[%clk 0:02:58]}  h5 {[%clk 0:02:58]} 8. Be3 {[%clk 0:02:58]}  Be7 {[%clk 0:02:57]} 9. h3 {[%clk 0:02:56]}  Be6 {[%clk 0:02:58]} 10. g4 {[%clk 0:02:55]}  hxg4 {[%clk 0:02:59]} 11. hxg4 {[%clk 0:02:56]}  d5 {[%clk 0:02:59]} 12. exd5 {[%clk 0:02:37]}  Nxd5 {[%clk 0:02:59]} 13. Nxd5 {[%clk 0:02:11]}  Qxd5 {[%clk 0:03:00]} 14. Qxd5 {[%clk 0:02:09]}  Bxd5 {[%clk 0:03:01]} 15. O-O-O {[%clk 0:02:09]}  Bc6 {[%clk 0:02:58]} 16. g5 {[%clk 0:02:03]}  Nd7 {[%clk 0:02:56]} 17. g6 {[%clk 0:02:00]}  f6 {[%clk 0:02:55]} 18. Na5 {[%clk 0:02:00]}  Bf3 {[%clk 0:02:49]} 19. Rd3 {[%clk 0:01:47]}  O-O-O {[%clk 0:02:47]} 20. a3 {[%clk 0:01:36]}  Kb8 {[%clk 0:02:44]} 21. Ba7+ {[%clk 0:01:16]}  Kxa7 {[%clk 0:02:42]} 22. Rxf3 {[%clk 0:01:16]}  Nc5 {[%clk 0:02:39]} 23. Bg2 {[%clk 0:01:05]}  e4 {[%clk 0:02:35]} 24. Rc3 {[%clk 0:01:00]}  f5 {[%clk 0:02:33]} 25. b4 {[%clk 0:00:49]}  Ne6 {[%clk 0:02:26]} 26. Bf1 {[%clk 0:00:47]}  Bg5+ {[%clk 0:02:19]} 27. Kb1 {[%clk 0:00:46]}  Rd1+ {[%clk 0:02:18]} 28. Ka2 {[%clk 0:00:44]}  Bf6 {[%clk 0:02:17]} 29. Kb3 {[%clk 0:00:14]}  Bxc3 {[%clk 0:02:14]} 30. Kxc3 {[%clk 0:00:15]}  Rc8+ {[%clk 0:02:13]} 31. Kb2 {[%clk 0:00:13]}  Nd4 {[%clk 0:02:11]} 32. c3 {[%clk 0:00:03]}  Nf3 {[%clk 0:02:10]} 33. Rh1 {[%clk 0:00:02]}  Rcd8 {[%clk 0:01:44]} 34. Bg2 {[%clk 0:00:01]}  Rxh1 {[%clk 0:01:43]} 35. Bxh1 {[%clk 0:00:02]}  Rd2+ {[%clk 0:01:43]} 36. Kb3 {[%clk 0:00:02]}  Rxf2 {[%clk 0:01:44]} 37. Nc4 {[%clk 0:00:03]}  Rh2 {[%clk 0:01:42]} 38. Bxf3 {[%clk 0:00:02]}  exf3 {[%clk 0:01:43]} 39. Nd6 {[%clk 0:00:02]}  f2 {[%clk 0:01:42]} 40. Nxf5 {[%clk 0:00:03]}  f1=Q {[%clk 0:01:42]} 41. Nxg7 {[%clk 0:00:03]}  Qb1+ {[%clk 0:01:42]} 42. Kc4 {[%clk 0:00:03]}  b5+ {[%clk 0:01:42]} 43. Kc5 {[%clk 0:00:03]}  Qxg6 {[%clk 0:01:41]} 44. a4 {[%clk 0:00:02]}  Qxg7 {[%clk 0:01:38]} 45. axb5 {[%clk 0:00:02]}  Rh5+ {[%clk 0:01:38]} 46. Kc4 {[%clk 0:00:03]}  axb5+ {[%clk 0:01:38]} 47. Kb3 {[%clk 0:00:03]}  Rh3 {[%clk 0:01:37]} 48. Kb2 {[%clk 0:00:03]}  Qxc3+ {[%clk 0:01:37]} 49. Kb1 {[%clk 0:00:04]}  Rh1+ {[%clk 0:01:37]} 50. Ka2 {[%clk 0:00:05]}  Ra1# {[%clk 0:01:37]} 0-1


[Site "https://www.chess.com"]

[Event "Titled Tuesday Blitz February 21 Late 2023"]
[White "Arvelo Leo, Gian Carlo"]
[Black "Jesusesmifuerza"]
[WhiteFideId "6402720"]
[WhiteElo "2075"]
[BlackElo "2009"]
[Result "1-0"]
[Round "08"]
[TimeControl "180+2"]
[Date "2023.02.21"]
[WhiteClock "0:01:27"]
[BlackClock "0:00:29"]

1. Nf3 {[%clk 0:03:00]}  d5 {[%clk 0:02:59]} 2. c4 {[%clk 0:03:00]}  e6 {[%clk 0:02:59]} 3. g3 {[%clk 0:02:59]}  Nf6 {[%clk 0:02:58]} 4. Bg2 {[%clk 0:02:59]}  Be7 {[%clk 0:02:58]} 5. O-O {[%clk 0:02:59]}  O-O {[%clk 0:02:59]} 6. b3 {[%clk 0:03:00]}  c5 {[%clk 0:02:58]} 7. Bb2 {[%clk 0:02:58]}  Nc6 {[%clk 0:02:58]} 8. e3 {[%clk 0:02:58]}  d4 {[%clk 0:02:54]} 9. exd4 {[%clk 0:02:57]}  Nxd4 {[%clk 0:02:55]} 10. Nxd4 {[%clk 0:02:56]}  cxd4 {[%clk 0:02:56]} 11. d3 {[%clk 0:02:36]}  a5 {[%clk 0:02:54]} 12. Na3 {[%clk 0:02:35]}  Bc5 {[%clk 0:02:46]} 13. Nb5 {[%clk 0:02:32]}  Rb8 {[%clk 0:02:41]} 14. Qd2 {[%clk 0:02:26]}  Qb6 {[%clk 0:02:09]} 15. a3 {[%clk 0:02:24]}  e5 {[%clk 0:01:54]} 16. Rfe1 {[%clk 0:02:14]}  Re8 {[%clk 0:01:49]} 17. b4 {[%clk 0:02:09]}  axb4 {[%clk 0:01:49]} 18. axb4 {[%clk 0:02:08]}  Bf8 {[%clk 0:01:39]} 19. f4 {[%clk 0:02:05]}  Ng4 {[%clk 0:01:32]} 20. fxe5 {[%clk 0:02:02]}  Rxe5 {[%clk 0:01:25]} 21. Bxd4 {[%clk 0:01:56]}  Rxe1+ {[%clk 0:01:18]} 22. Rxe1 {[%clk 0:01:54]}  Qh6 {[%clk 0:01:07]} 23. Qxh6 {[%clk 0:01:48]}  Nxh6 {[%clk 0:01:08]} 24. c5 {[%clk 0:01:42]}  Be6 {[%clk 0:01:05]} 25. Be5 {[%clk 0:01:37]}  Rd8 {[%clk 0:01:03]} 26. d4 {[%clk 0:01:35]}  Bc4 {[%clk 0:01:01]} 27. Nd6 {[%clk 0:01:35]}  Bxd6 {[%clk 0:00:59]} 28. Bxd6 {[%clk 0:01:34]}  b6 {[%clk 0:00:53]} 29. Bc7 {[%clk 0:01:30]}  Rc8 {[%clk 0:00:31]} 30. cxb6 {[%clk 0:01:28]}  Nf5 {[%clk 0:00:29]} 31. b7 {[%clk 0:01:27]} 1-0


[Site "https://www.chess.com"]

[Event "Titled Tuesday Blitz February 21 Late 2023"]
[White "Roman, Rodrigo"]
[Black "Pissama Ntsaou, Martial"]
[WhiteFideId "3701220"]
[BlackFideId "17400864"]
[WhiteElo "2058"]
[BlackElo "1430"]
[Result "0-1"]
[Round "08"]
[TimeControl "180+2"]
[Date "2023.02.21"]
[WhiteClock "0:02:27"]
[BlackClock "0:02:24"]

1. e4 {[%clk 0:02:50]}  c6 {[%clk 0:02:59]} 2. Ne2 {[%clk 0:02:50]}  d5 {[%clk 0:02:58]} 3. e5 {[%clk 0:02:50]}  Bf5 {[%clk 0:02:57]} 4. Ng3 {[%clk 0:02:49]}  Bg6 {[%clk 0:02:57]} 5. h4 {[%clk 0:02:49]}  h5 {[%clk 0:02:55]} 6. d4 {[%clk 0:02:47]}  e6 {[%clk 0:02:55]} 7. Bd3 {[%clk 0:02:48]}  Bxd3 {[%clk 0:02:54]} 8. Qxd3 {[%clk 0:02:49]}  Qa5+ {[%clk 0:02:52]} 9. Nd2 {[%clk 0:02:48]}  Qa6 {[%clk 0:02:52]} 10. c4 {[%clk 0:02:48]}  Nd7 {[%clk 0:02:47]} 11. O-O {[%clk 0:02:43]}  Be7 {[%clk 0:02:37]} 12. b3 {[%clk 0:02:39]}  Bxh4 {[%clk 0:02:36]} 13. Nxh5 {[%clk 0:02:27]}  Rxh5 {[%clk 0:02:27]} 14. Qh3 {[%clk 0:02:27]}  Bxf2+ {[%clk 0:02:24]} 0-1


[Site "https://www.chess.com"]

[Event "Titled Tuesday Blitz February 21 Late 2023"]
[White "Melikyan, Gnel"]
[Black "Oliveira, Tiago Batista"]
[WhiteFideId "54109990"]
[BlackFideId "2108291"]
[WhiteElo "2238"]
[BlackElo "1991"]
[Result "1-0"]
[Round "08"]
[TimeControl "180+2"]
[Date "2023.02.21"]
[WhiteClock "0:01:39"]
[BlackClock "0:00:45"]

1. Nh3 {[%clk 0:02:59]}  g6 {[%clk 0:02:50]} 2. Na3 {[%clk 0:02:58]}  Bg7 {[%clk 0:02:50]} 3. e4 {[%clk 0:02:58]}  d6 {[%clk 0:02:50]} 4. Nf4 {[%clk 0:02:58]}  Nf6 {[%clk 0:02:50]} 5. d3 {[%clk 0:02:55]}  c5 {[%clk 0:02:50]} 6. Be2 {[%clk 0:02:55]}  Nc6 {[%clk 0:02:49]} 7. O-O {[%clk 0:02:55]}  O-O {[%clk 0:02:49]} 8. Nc4 {[%clk 0:02:55]}  b5 {[%clk 0:02:47]} 9. Ne3 {[%clk 0:02:55]}  e5 {[%clk 0:02:45]} 10. Nfd5 {[%clk 0:02:55]}  Nxd5 {[%clk 0:02:45]} 11. Nxd5 {[%clk 0:02:55]}  Ne7 {[%clk 0:02:45]} 12. Nxe7+ {[%clk 0:02:55]}  Qxe7 {[%clk 0:02:45]} 13. a4 {[%clk 0:02:56]}  b4 {[%clk 0:02:41]} 14. c3 {[%clk 0:02:47]}  a5 {[%clk 0:02:41]} 15. cxb4 {[%clk 0:02:47]}  axb4 {[%clk 0:02:41]} 16. b3 {[%clk 0:02:47]}  f5 {[%clk 0:02:39]} 17. Bf3 {[%clk 0:02:46]}  f4 {[%clk 0:02:37]} 18. Bg4 {[%clk 0:02:45]}  h5 {[%clk 0:02:34]} 19. Bxc8 {[%clk 0:02:45]}  Raxc8 {[%clk 0:02:34]} 20. f3 {[%clk 0:02:44]}  g5 {[%clk 0:02:34]} 21. Kf2 {[%clk 0:02:43]}  Qf7 {[%clk 0:02:33]} 22. Qc2 {[%clk 0:02:43]}  g4 {[%clk 0:02:30]} 23. Qc4 {[%clk 0:02:43]}  Bh6 {[%clk 0:02:15]} 24. Ke2 {[%clk 0:02:42]}  Kg7 {[%clk 0:02:13]} 25. Bd2 {[%clk 0:02:40]}  Rfd8 {[%clk 0:02:03]} 26. a5 {[%clk 0:02:30]}  d5 {[%clk 0:01:55]} 27. exd5 {[%clk 0:02:31]}  Rxd5 {[%clk 0:01:49]} 28. a6 {[%clk 0:02:31]}  Rcd8 {[%clk 0:01:36]} 29. a7 {[%clk 0:02:24]}  Qb7 {[%clk 0:01:29]} 30. Qa6 {[%clk 0:02:14]}  Qxa6 {[%clk 0:01:26]} 31. Rxa6 {[%clk 0:02:15]}  Ra8 {[%clk 0:01:25]} 32. Rfa1 {[%clk 0:02:12]}  Bg5 {[%clk 0:01:18]} 33. R1a5 {[%clk 0:01:56]}  Be7 {[%clk 0:01:16]} 34. Bxb4 {[%clk 0:01:53]}  gxf3+ {[%clk 0:01:00]} 35. gxf3 {[%clk 0:01:52]}  Kf7 {[%clk 0:00:48]} 36. Bc3 {[%clk 0:01:46]}  Rd6 {[%clk 0:00:46]} 37. Bxe5 {[%clk 0:01:39]}  Rxa6 {[%clk 0:00:45]} 38. Rxa6 {[%clk 0:01:39]} 1-0


[Site "https://www.chess.com"]

[Event "Titled Tuesday Blitz February 21 Late 2023"]
[White "Tabatabaei, M. Amin"]
[Black "Vachier-Lagrave, Maxime"]
[WhiteFideId "12521213"]
[BlackFideId "623539"]
[WhiteElo "2677"]
[BlackElo "2742"]
[Result "0-1"]
[Round "09"]
[TimeControl "180+2"]
[Date "2023.02.21"]
[WhiteClock "0:00:03"]
[BlackClock "0:00:05"]

1. d4 {[%clk 0:03:00]}  Nf6 {[%clk 0:02:59]} 2. Nf3 {[%clk 0:03:01]}  g6 {[%clk 0:02:59]} 3. Nbd2 {[%clk 0:03:01]}  d5 {[%clk 0:02:59]} 4. b3 {[%clk 0:03:01]}  Bg7 {[%clk 0:02:58]} 5. Bb2 {[%clk 0:03:02]}  Bf5 {[%clk 0:02:58]} 6. e3 {[%clk 0:03:02]}  O-O {[%clk 0:02:58]} 7. c4 {[%clk 0:03:02]}  c6 {[%clk 0:02:56]} 8. Be2 {[%clk 0:03:02]}  Nbd7 {[%clk 0:02:52]} 9. O-O {[%clk 0:03:02]}  Re8 {[%clk 0:02:49]} 10. h3 {[%clk 0:02:58]}  a5 {[%clk 0:02:37]} 11. Nh4 {[%clk 0:02:47]}  Be6 {[%clk 0:02:37]} 12. f4 {[%clk 0:02:47]}  Nf8 {[%clk 0:02:18]} 13. f5 {[%clk 0:02:45]}  Bd7 {[%clk 0:02:14]} 14. Bd3 {[%clk 0:02:18]}  e6 {[%clk 0:02:00]} 15. fxg6 {[%clk 0:02:13]}  hxg6 {[%clk 0:02:01]} 16. Nhf3 {[%clk 0:02:12]}  N6h7 {[%clk 0:01:24]} 17. Ne5 {[%clk 0:02:11]}  f5 {[%clk 0:01:24]} 18. Qf3 {[%clk 0:02:02]}  Bh6 {[%clk 0:01:17]} 19. Qg3 {[%clk 0:01:48]}  Qg5 {[%clk 0:01:17]} 20. Qxg5 {[%clk 0:01:45]}  Nxg5 {[%clk 0:01:18]} 21. Rfe1 {[%clk 0:01:29]}  a4 {[%clk 0:01:17]} 22. Ba3 {[%clk 0:01:22]}  Nf7 {[%clk 0:01:09]} 23. Ndf3 {[%clk 0:01:18]}  Nxe5 {[%clk 0:01:00]} 24. Nxe5 {[%clk 0:01:19]}  Bg7 {[%clk 0:01:00]} 25. Bc5 {[%clk 0:00:58]}  Bc8 {[%clk 0:00:57]} 26. Reb1 {[%clk 0:00:55]}  Bf6 {[%clk 0:00:45]} 27. g4 {[%clk 0:00:52]}  Kg7 {[%clk 0:00:44]} 28. Kg2 {[%clk 0:00:51]}  Ra5 {[%clk 0:00:35]} 29. b4 {[%clk 0:00:47]}  Ra8 {[%clk 0:00:35]} 30. b5 {[%clk 0:00:48]}  Nd7 {[%clk 0:00:32]} 31. Bd6 {[%clk 0:00:44]}  Nxe5 {[%clk 0:00:28]} 32. dxe5 {[%clk 0:00:42]}  Bg5 {[%clk 0:00:28]} 33. Kf3 {[%clk 0:00:39]}  Bd7 {[%clk 0:00:28]} 34. Rg1 {[%clk 0:00:30]}  dxc4 {[%clk 0:00:26]} 35. Bc2 {[%clk 0:00:14]}  Be7 {[%clk 0:00:09]} 36. Rad1 {[%clk 0:00:12]}  cxb5 {[%clk 0:00:09]} 37. Bxe7 {[%clk 0:00:06]}  Rxe7 {[%clk 0:00:09]} 38. a3 {[%clk 0:00:07]}  b4 {[%clk 0:00:08]} 39. axb4 {[%clk 0:00:07]}  a3 {[%clk 0:00:09]} 40. Rd6 {[%clk 0:00:07]}  Bc6+ {[%clk 0:00:07]} 41. Kf4 {[%clk 0:00:07]}  Be4 {[%clk 0:00:07]} 42. gxf5 {[%clk 0:00:06]}  Bxf5 {[%clk 0:00:05]} 43. Bxf5 {[%clk 0:00:05]}  exf5 {[%clk 0:00:06]} 44. Rdxg6+ {[%clk 0:00:04]}  Kh8 {[%clk 0:00:06]} 45. Rh6+ {[%clk 0:00:03]}  Rh7 {[%clk 0:00:06]} 46. Rxh7+ {[%clk 0:00:02]}  Kxh7 {[%clk 0:00:07]} 47. e4 {[%clk 0:00:02]}  a2 {[%clk 0:00:06]} 48. Ra1 {[%clk 0:00:02]}  c3 {[%clk 0:00:06]} 49. Ke3 {[%clk 0:00:02]}  fxe4 {[%clk 0:00:06]} 50. e6 {[%clk 0:00:03]}  Kg7 {[%clk 0:00:06]} 51. Kxe4 {[%clk 0:00:02]}  c2 {[%clk 0:00:06]} 52. e7 {[%clk 0:00:03]}  Kf7 {[%clk 0:00:06]} 53. e8=Q+ {[%clk 0:00:02]}  Kxe8 {[%clk 0:00:05]} 54. Kd3 {[%clk 0:00:03]} 0-1


[Site "https://www.chess.com"]